bitfinex/quotes_BTCUSD_20250620
["timestamp","ask_amount","ask_price","bid_price","bid_amount"]
[1750409567616,5.10066588,106120.0,106110.0,0.00024129]
[1750409567836,5.10066588,106120.0,106110.0,0.18872493]
[1750409568053,5.03946588,106120.0,106110.0,0.19814911]
[1750409568268,4.88903774,106120.0,106110.0,0.19814911]
[1750409568471,5.03942588,106120.0,106110.0,0.19814911]
[1750409568894,5.03938588,106120.0,106110.0,0.19814911]
[1750409569124,5.03938588,106120.0,106110.0,0.12957493]
[1750409569592,5.03938588,106120.0,106110.0,0.13899893]
[1750409569804,4.88098588,106120.0,106110.0,0.12957493]
[1750409570009,5.03938588,106120.0,106110.0,0.13999902]
[1750409570215,5.03938588,106120.0,106110.0,0.13057493]
[1750409571881,5.03938588,106120.0,106110.0,0.12957493]
[1750409572096,0.35884756,106110.0,106100.0,0.3885882]
[1750409572308,0.35884756,106110.0,106100.0,0.38872838]
[1750409572309,0.35884738,106110.0,106100.0,0.38872838]
[1750409572526,0.35884729,106110.0,106100.0,0.38872838]
[1750409572990,0.3588472,106110.0,106100.0,0.38872838]
[1750409573252,0.3588472,106110.0,106100.0,0.39072838]
[1750409574045,0.36827111,106110.0,106100.0,0.39072838]
[1750409574681,0.36827111,106110.0,106100.0,0.39272838]
[1750409575312,0.36827102,106110.0,106100.0,0.39272838]
[1750409575562,0.34942338,106110.0,106100.0,0.39272838]
[1750409576281,0.34942356,106110.0,106100.0,0.39272838]
[1750409576497,0.34,106110.0,106100.0,0.39272838]
[1750409576712,0.35884702,106110.0,106100.0,0.39272838]
[1750409577461,0.34942338,106110.0,106100.0,0.39272838]
[1750409577667,0.35884702,106110.0,106100.0,0.39272838]
[1750409577889,0.34,106110.0,106100.0,0.39272838]
[1750409578113,0.34942267,106120.0,106110.0,0.21675511]
[1750409578345,0.55972525,106120.0,106110.0,0.29419596]
[1750409578566,0.41078818,106120.0,106110.0,0.29419596]
[1750409578781,0.40136525,106120.0,106110.0,0.29419596]
[1750409579214,0.04252,106120.0,106110.0,0.29419596]
[1750409579458,4.61149665,106130.0,106120.0,0.21673468]
[1750409579680,0.34401674,106130.0,106120.0,0.29447553]
[1750409579894,0.69343861,106130.0,106120.0,0.29547553]
[1750409580112,0.68401674,106130.0,106120.0,0.29547553]
[1750409580591,0.69343861,106130.0,106120.0,0.29547553]
[1750409580885,0.75883923,106130.0,106120.0,0.20731184]
[1750409581112,0.70486163,106130.0,106120.0,0.20831184]
[1750409581336,0.70486154,106130.0,106120.0,0.21873477]
[1750409581543,0.70286154,106130.0,106120.0,0.20931192]
[1750409581766,0.89130966,106130.0,106120.0,0.21131201]
[1750409581990,0.69343923,106130.0,106120.0,0.22073486]
[1750409582214,0.69343923,106130.0,106120.0,0.23015753]
[1750409582440,0.69343923,106130.0,106120.0,0.23015762]
[1750409582649,0.70286084,106130.0,106120.0,0.23958029]
[1750409583084,0.68401692,106130.0,106120.0,0.23958029]
[1750409583304,0.68401674,106130.0,106120.0,0.30138029]
[1750409583516,0.85175861,106130.0,106120.0,0.30138029]
[1750409584393,0.86118066,106130.0,106120.0,0.30138029]
[1750409584649,0.68401674,106130.0,106120.0,0.28572114]
[1750409584870,0.84229674,106130.0,106120.0,0.28572114]
[1750409585087,0.84229674,106130.0,106120.0,0.31872114]
[1750409585316,0.8517187,106130.0,106120.0,0.31872114]
[1750409585544,0.8517187,106130.0,106120.0,0.25412114]
[1750409586206,0.84229674,106130.0,106120.0,0.25412114]
[1750409586431,0.84229665,106130.0,106120.0,0.25412114]
[1750409586650,0.84229683,106130.0,106120.0,0.31592114]
[1750409587083,0.84229674,106130.0,106120.0,0.31592114]
[1750409587317,0.83287505,106130.0,106120.0,0.31592114]
[1750409587779,0.84229665,106130.0,106120.0,0.31592114]
[1750409588002,0.86114021,106130.0,106120.0,0.28432114]
[1750409588230,0.85171834,106130.0,106120.0,0.28432114]
[1750409588558,0.69343834,106130.0,106120.0,0.28432114]
[1750409588991,0.67459505,106130.0,106120.0,0.28432114]
[1750409589219,0.67459505,106130.0,106120.0,0.31502114]
[1750409590126,0.68401674,106130.0,106120.0,0.31502114]
[1750409590561,0.68401665,106130.0,106120.0,0.31502114]
[1750409591879,0.33447505,106130.0,106120.0,0.31502114]
[1750409592415,0.33447505,106130.0,106120.0,0.47326114]
[1750409592929,0.34389683,106130.0,106120.0,0.41236114]
[1750409593790,0.34389674,106130.0,106120.0,0.41236114]
[1750409594007,0.33447505,106130.0,106120.0,0.41236114]
[1750409594645,0.33447505,106130.0,106120.0,0.47666114]
[1750409595768,0.34389665,106130.0,106120.0,0.47666114]
[1750409595983,0.35331843,106130.0,106120.0,0.47666114]
[1750409596278,0.3627403,106130.0,106120.0,0.41236114]
[1750409596491,0.36274021,106130.0,106120.0,0.41236114]
[1750409596718,0.34389665,106130.0,106120.0,0.25412114]
[1750409596988,0.33447505,106130.0,106120.0,0.25412114]
[1750409597667,0.33447505,106130.0,106120.0,0.31692114]
[1750409597882,0.33447505,106130.0,106120.0,0.41220007]
[1750409598104,0.33447505,106130.0,106120.0,0.48029226]
[1750409599314,0.33447505,106130.0,106120.0,0.41220007]
[1750409603765,0.10819505,106130.0,106120.0,0.73491875]
[1750409604045,0.06579505,106130.0,106120.0,0.73491875]
[1750409604258,0.06579505,106130.0,106120.0,0.41220007]
[1750409605333,0.06579505,106130.0,106120.0,0.73491875]
[1750409605763,0.06579505,106130.0,106120.0,0.50746992]
[1750409609344,0.06579505,106130.0,106120.0,0.8301886]
[1750409610003,0.06579505,106130.0,106120.0,0.50746992]
[1750409610774,0.06579505,106130.0,106120.0,0.8301886]
[1750409611394,0.06579505,106130.0,106120.0,1.1701886]
[1750409611646,0.06579505,106130.0,106120.0,1.87180265]
[1750409611846,0.06579505,106130.0,106120.0,1.5201886]
[1750409612052,0.06579505,106130.0,106120.0,1.84190728]
[1750409612454,0.06879505,106130.0,106120.0,1.88990728]
[1750409612654,0.06579505,106130.0,106120.0,1.88990728]
[1750409612865,0.06579505,106130.0,106120.0,1.5671886]
[1750409613076,0.06779505,106130.0,106120.0,1.5671886]
[1750409613904,0.06979505,106130.0,106120.0,1.5671886]
[1750409614082,0.06979505,106130.0,106120.0,1.88990728]
[1750409614328,0.06779505,106130.0,106120.0,2.05026728]
[1750409614537,0.06779505,106130.0,106120.0,1.7275486]
[1750409614746,0.06979505,106130.0,106120.0,1.7275486]
[1750409615796,0.06979505,106130.0,106120.0,2.20830728]
[1750409616229,0.06979505,106130.0,106120.0,2.50460728]
[1750409617113,0.06979505,106130.0,106120.0,2.1818886]
[1750409619748,0.06979505,106130.0,106120.0,2.50460728]
[1750409620860,0.06979505,106130.0,106120.0,2.1818886]
[1750409621817,0.06979505,106130.0,106120.0,2.50460728]
[1750409622032,0.06979505,106130.0,106120.0,2.20830728]
[1750409622251,0.06979505,106130.0,106120.0,2.23660028]
[1750409622992,0.06979505,106130.0,106120.0,1.9138816]
[1750409623956,0.06979505,106130.0,106120.0,1.9136816]
[1750409625325,0.06979505,106130.0,106120.0,1.8636816]
[1750409625531,0.06979505,106130.0,106120.0,1.9136816]
[1750409626158,0.06979505,106130.0,106120.0,1.8636816]
[1750409626511,0.06979505,106130.0,106120.0,1.9136816]
[1750409626818,0.06979505,106130.0,106120.0,0.89161292]
[1750409626877,0.06979505,106130.0,106120.0,1.35771075]
[1750409627058,0.06979505,106130.0,106120.0,1.40771075]
[1750409627457,0.06979505,106130.0,106120.0,1.4222516]
[1750409628430,0.06979505,106130.0,106120.0,1.4722516]
[1750409628632,0.06979505,106130.0,106120.0,1.5713616]
[1750409628842,0.06979505,106130.0,106120.0,1.60130229]
[1750409629046,0.06979505,106130.0,106120.0,1.80606097]
[1750409629465,0.06979505,106130.0,106120.0,2.37153028]
[1750409629673,0.04579505,106130.0,106120.0,2.37153028]
[1750409629878,0.07519435,106150.0,106140.0,0.68507469]
[1750409630084,0.07519435,106150.0,106140.0,1.58371098]
[1750409630321,0.07519435,106150.0,106140.0,2.02528083]
[1750409631258,0.07919435,106150.0,106140.0,2.02528083]
[1750409631691,0.08219435,106150.0,106140.0,2.02628083]
[1750409631919,0.07619435,106150.0,106140.0,2.02528083]
[1750409632138,0.07619435,106150.0,106140.0,2.06756083]
[1750409633281,0.07719435,106150.0,106140.0,2.06756083]
[1750409639131,0.07719435,106150.0,106140.0,2.16667083]
[1750409639925,0.07719435,106150.0,106140.0,2.19495683]
[1750409641142,0.05319435,106150.0,106140.0,2.19495683]
[1750409641399,0.18798588,106190.0,106140.0,2.19495683]
[1750409641400,0.06095,106220.0,106190.0,0.44]
[1750409641630,0.06095,106220.0,106190.0,1.86117045]
[1750409641631,0.14010125,106200.0,106190.0,1.86117045]
[1750409641865,0.14057222,106200.0,106190.0,2.06189236]
[1750409642162,0.05604886,106210.0,106200.0,1.12111227]
[1750409642423,5e-05,106220.0,106210.0,0.83400188]
[1750409642666,0.00019126,106220.0,106210.0,0.81548081]
[1750409642898,0.00019126,106220.0,106210.0,1.42479915]
[1750409643875,0.00019126,106220.0,106210.0,1.45359785]
[1750409644095,0.03219126,106220.0,106210.0,1.4630903]
[1750409644760,0.00119126,106220.0,106210.0,1.4630903]
[1750409644972,0.00119126,106220.0,106210.0,1.49543985]
[1750409645185,0.00119126,106220.0,106210.0,1.4643103]
[1750409645629,0.00119126,106220.0,106210.0,1.30455076]
[1750409645876,0.00119126,106220.0,106210.0,1.46231076]
[1750409648027,0.06629126,106220.0,106210.0,1.30333076]
[1750409648238,0.06629126,106220.0,106210.0,1.46105076]
[1750409648457,0.06629126,106220.0,106210.0,1.49218031]
[1750409648662,0.06629126,106220.0,106210.0,1.46105076]
[1750409651435,0.06629126,106220.0,106210.0,1.13833208]
[1750409651648,0.06629126,106220.0,106210.0,1.46105076]
[1750409655493,0.06629126,106220.0,106210.0,1.15333076]
[1750409655724,0.06747126,106220.0,106210.0,1.31097076]
[1750409656849,0.06747126,106220.0,106210.0,0.97097076]
[1750409657062,0.06747126,106220.0,106210.0,0.94213206]
[1750409657300,0.06629126,106220.0,106210.0,0.78449206]
[1750409657579,0.06629126,106220.0,106210.0,0.94213206]
[1750409659700,0.06629126,106220.0,106210.0,0.78449206]
[1750409659942,0.06629126,106220.0,106210.0,0.94209206]
[1750409660164,0.06629126,106220.0,106210.0,0.61937338]
[1750409660387,0.06629126,106220.0,106210.0,0.94209206]
[1750409662088,0.06629126,106220.0,106210.0,0.61937338]
[1750409662292,0.06629126,106220.0,106210.0,0.94209206]
[1750409667958,0.06629126,106220.0,106210.0,0.42098722]
[1750409668177,0.31669846,106220.0,106210.0,0.12790966]
[1750409668406,4.95026374,106220.0,106210.0,0.12790966]
[1750409668649,0.08440105,106200.0,106190.0,0.36473465]
[1750409668880,0.0938168,106200.0,106190.0,0.46001358]
[1750409669115,0.10323272,106200.0,106190.0,0.46001358]
[1750409669341,0.1359368,106200.0,106190.0,0.46001358]
[1750409669754,0.14535281,106200.0,106190.0,0.30245358]
[1750409670232,0.34309291,106200.0,106190.0,0.09527893]
[1750409670454,0.09261964,106190.0,106180.0,0.36475406]
[1750409670676,0.083203,106190.0,106180.0,0.46945069]
[1750409670894,0.09261981,106190.0,106180.0,0.46945069]
[1750409671111,0.07378637,106190.0,106180.0,0.46945069]
[1750409671331,0.08320292,106190.0,106180.0,0.46945069]
[1750409671541,0.07378637,106190.0,106180.0,0.46945069]
[1750409671722,0.07378637,106190.0,106180.0,0.50058024]
[1750409671962,0.07378628,106190.0,106180.0,0.46945069]
[1750409672181,0.07878628,106190.0,106180.0,0.47045069]
[1750409672585,0.08178628,106190.0,106180.0,0.47045069]
[1750409672891,0.09120274,106190.0,106180.0,0.47045069]
[1750409673320,0.08178628,106190.0,106180.0,0.47045069]
[1750409673532,0.09120274,106190.0,106180.0,0.47045069]
[1750409673748,0.10061929,106190.0,106180.0,0.47045069]
[1750409673964,0.11003601,106190.0,106180.0,0.30347344]
[1750409674174,0.11945291,106190.0,106180.0,0.47045078]
[1750409674597,0.11003592,106190.0,106180.0,0.47045078]
[1750409675077,0.08178628,106190.0,106180.0,0.47045078]
[1750409675338,0.07237,106190.0,106180.0,0.47045078]
[1750409675555,0.08178628,106190.0,106180.0,0.47045078]
[1750409675776,0.09120265,106190.0,106180.0,0.47045078]
[1750409676744,0.1006192,106190.0,106180.0,0.47045078]
[1750409677558,0.09120265,106190.0,106180.0,0.47045078]
[1750409678040,0.08178628,106190.0,106180.0,0.47045078]
[1750409678437,0.09120265,106190.0,106180.0,0.47045078]
[1750409678777,0.08178628,106190.0,106180.0,0.47045078]
[1750409679177,0.07237,106190.0,106180.0,0.47045078]
[1750409679385,0.08178628,106190.0,106180.0,0.47045078]
[1750409679802,0.07237,106190.0,106180.0,0.47045078]
[1750409680487,0.0712,106190.0,106180.0,0.48499163]
[1750409682007,0.07237,106190.0,106180.0,0.31289078]
[1750409682246,0.07237,106190.0,106180.0,0.47041078]
[1750409683561,0.08178637,106190.0,106180.0,0.47041078]
[1750409684491,0.08178637,106190.0,106180.0,0.21761185]
[1750409684708,0.08178637,106190.0,106180.0,0.37513185]
[1750409685154,0.09120292,106190.0,106180.0,0.37513185]
[1750409685370,0.08178637,106190.0,106180.0,0.37513185]
[1750409686323,0.09120292,106190.0,106180.0,0.37513185]
[1750409686757,0.09120283,106190.0,106180.0,0.37513185]
[1750409687837,0.10061946,106190.0,106180.0,0.37513185]
[1750409688063,0.11003618,106190.0,106180.0,0.21761185]
[1750409688343,0.30779473,106190.0,106180.0,0.36571451]
[1750409688562,0.11945308,106190.0,106180.0,0.37513185]
[1750409689003,0.30779544,106190.0,106180.0,0.37513185]
[1750409689220,0.29837836,106190.0,106180.0,0.37513185]
[1750409689436,0.30779597,106190.0,106180.0,0.37513185]
[1750409690478,0.30779597,106190.0,106180.0,0.21761185]
[1750409690679,0.62896262,106190.0,106180.0,0.37509265]
[1750409690889,0.61954572,106190.0,106180.0,0.37509265]
[1750409691339,0.61954572,106190.0,106180.0,0.21761265]
[1750409693309,0.61954572,106190.0,106180.0,0.19877734]
[1750409693539,0.61012873,106190.0,106180.0,0.20819522]
[1750409693743,0.61012873,106190.0,106180.0,0.22703053]
[1750409694896,0.61012873,106190.0,106180.0,0.21761292]
[1750409695519,0.61012873,106190.0,106180.0,0.20819522]
[1750409696523,0.60071165,106190.0,106180.0,0.18935938]
[1750409696736,0.60071165,106190.0,106180.0,0.001]
[1750409697877,0.60071165,106190.0,106180.0,0.18935938]
[1750409698105,0.60071165,106190.0,106180.0,0.19877734]
[1750409698319,0.60071165,106190.0,106180.0,0.20819522]
[1750409699061,0.47207327,106190.0,106180.0,0.22703017]
[1750409699294,0.42061637,106190.0,106180.0,0.22703017]
[1750409699512,0.48148973,106190.0,106180.0,0.22703017]
[1750409699725,0.48264973,106190.0,106180.0,0.22703017]
[1750409700375,0.49206663,106190.0,106180.0,0.22703017]
[1750409701022,0.48264973,106190.0,106180.0,0.22703017]
[1750409701254,0.46381646,106190.0,106180.0,0.22703017]
[1750409701481,0.05004,106190.0,106180.0,0.33684995]
[1750409702338,0.008,106190.0,106180.0,0.33684995]
[1750409705022,0.008,106190.0,106180.0,0.33797995]
[1750409705470,0.0389,106190.0,106180.0,0.33797995]
[1750409706194,0.008,106190.0,106180.0,0.33797995]
[1750409710960,0.008,106190.0,106180.0,0.40217995]
[1750409711213,0.008,106190.0,106180.0,0.36957995]
[1750409711431,0.008,106190.0,106180.0,0.33797995]
[1750409711653,0.04,106190.0,106180.0,0.33797995]
[1750409712307,0.008,106190.0,106180.0,0.33797995]
[1750409714431,0.008,106190.0,106180.0,0.3234391]
[1750409714696,0.008,106190.0,106180.0,0.33797995]
[1750409715606,0.008,106190.0,106180.0,0.40097995]
[1750409716158,0.008,106190.0,106180.0,0.36797995]
[1750409716711,0.008,106190.0,106180.0,0.33797995]
[1750409727349,0.008,106190.0,106180.0,0.3379347]
[1750409730442,0.0406,106190.0,106180.0,0.3379347]
[1750409730889,0.0719,106190.0,106180.0,0.31284651]
[1750409731115,0.64624865,106190.0,106180.0,0.00095475]
[1750409731337,4.93022518,106190.0,106180.0,0.00095475]
[1750409731563,4.97210518,106190.0,106180.0,0.00095475]
[1750409732198,4.96910518,106190.0,106180.0,0.00095475]
[1750409732423,0.27961247,106180.0,106170.0,0.20721467]
[1750409732636,0.28076247,106180.0,106170.0,0.21663326]
[1750409732868,0.07356717,106180.0,106170.0,0.23547017]
[1750409733087,0.10182018,106180.0,106170.0,0.23546955]
[1750409733513,0.29959752,106180.0,106170.0,0.23546955]
[1750409733735,0.11137113,106180.0,106170.0,0.23746955]
[1750409733957,0.10195317,106180.0,106170.0,0.23746955]
[1750409734437,0.09353529,106180.0,106170.0,0.24246955]
[1750409734657,0.10295308,106180.0,106170.0,0.24246955]
[1750409735964,0.08411759,106180.0,106170.0,0.24246955]
[1750409736181,0.06413299,106180.0,106170.0,0.24246955]
[1750409736401,0.11547024,106180.0,106170.0,0.24246955]
[1750409736618,0.11662024,106180.0,106170.0,0.24246955]
[1750409736918,0.13545537,106180.0,106170.0,0.24246955]
[1750409737132,0.13545528,106180.0,106170.0,0.24246955]
[1750409737348,0.12603767,106180.0,106170.0,0.24246955]
[1750409737584,0.10720299,106180.0,106170.0,0.24246955]
[1750409737809,0.06413299,106180.0,106170.0,0.24246955]
[1750409738056,0.07415299,106180.0,106170.0,0.33894848]
[1750409738959,0.00113299,106180.0,106170.0,0.33894848]
[1750409739187,0.04305299,106180.0,106170.0,0.33894848]
[1750409739676,0.04305299,106180.0,106170.0,0.49676942]
[1750409739892,0.04305299,106180.0,106170.0,0.52789897]
[1750409740115,0.04305299,106180.0,106170.0,0.49676942]
[1750409743402,0.00113299,106180.0,106170.0,0.83402895]
[1750409743606,0.00113299,106180.0,106170.0,0.89902895]
[1750409743814,0.00113299,106180.0,106170.0,0.57631027]
[1750409744238,0.063,106210.0,106200.0,0.21657142]
[1750409744471,0.10492,106210.0,106200.0,0.51969494]
[1750409745090,0.06415,106210.0,106200.0,0.42441601]
[1750409745290,0.10591,106210.0,106200.0,0.42441601]
[1750409745492,0.1153246,106210.0,106200.0,0.42441601]
[1750409745713,0.11532451,106210.0,106200.0,0.42441601]
[1750409746130,0.10691,106210.0,106200.0,0.42841601]
[1750409747140,0.1163246,106210.0,106200.0,0.42841601]
[1750409747346,0.10691,106210.0,106200.0,0.42841601]
[1750409747530,0.11632451,106210.0,106200.0,0.42841601]
[1750409749574,0.12573928,106210.0,106200.0,0.42841601]
[1750409749978,0.12573911,106210.0,106200.0,0.42841601]
[1750409750206,0.11632451,106210.0,106200.0,0.42841601]
[1750409751130,0.12573919,106210.0,106200.0,0.42841601]
[1750409751758,0.12573919,106210.0,106200.0,0.27129601]
[1750409751759,0.14459918,106210.0,106200.0,0.27129601]
[1750409751975,0.15401422,106210.0,106200.0,0.42833601]
[1750409752182,0.14459909,106210.0,106200.0,0.42833601]
[1750409752395,0.1540151,106210.0,106200.0,0.42833619]
[1750409752600,0.12576954,106210.0,106200.0,0.43775176]
[1750409752809,0.11635468,106210.0,106200.0,0.43775176]
[1750409753325,0.10576,106210.0,106200.0,0.37599069]
[1750409754152,0.064,106210.0,106200.0,0.37599069]
[1750409754363,0.10576,106210.0,106200.0,0.37599069]
[1750409755035,0.10576,106210.0,106200.0,0.3252661]
[1750409755245,0.10576,106210.0,106200.0,0.37591717]
[1750409755455,0.11635451,106210.0,106200.0,0.27122267]
[1750409755664,0.11635451,106210.0,106200.0,0.28063824]
[1750409756513,0.12576919,106210.0,106200.0,0.28063824]
[1750409756711,0.13518405,106210.0,106200.0,0.28063824]
[1750409756913,0.14459971,106210.0,106200.0,0.261855]
[1750409757132,0.34232119,106210.0,106200.0,0.27127075]
[1750409757474,0.33290651,106210.0,106200.0,0.25243908]
[1750409757702,4.9640767,106210.0,106200.0,0.02653292]
[1750409757925,5.1210767,106210.0,106200.0,0.02653292]
[1750409758553,5.1210767,106210.0,106200.0,0.21485683]
[1750409758775,5.1210767,106210.0,106200.0,0.02653292]
[1750409758992,5.1710767,106210.0,106200.0,0.02653292]
[1750409761134,5.1710767,106210.0,106200.0,0.02653342]
[1750409762442,5.1710767,106210.0,106200.0,0.21485733]
[1750409763321,5.1710767,106210.0,106200.0,0.02653342]
[1750409766503,5.1710767,106210.0,106200.0,0.22427352]
[1750409767177,5.1710767,106210.0,106200.0,0.02653342]
[1750409769038,5.19963628,106210.0,106200.0,0.02653342]
[1750409769850,5.22792528,106210.0,106200.0,0.02653342]
[1750409770592,5.1993657,106210.0,106200.0,0.02653342]
[1750409771345,5.0006057,106210.0,106200.0,0.02653342]
[1750409771562,5.1992857,106210.0,106200.0,0.02653342]
[1750409772885,5.29456463,106210.0,106200.0,0.02653342]
[1750409773314,5.30338191,106210.0,106200.0,0.02653342]
[1750409774107,5.29456463,106210.0,106200.0,0.02653342]
[1750409776485,5.52072463,106210.0,106200.0,0.02653342]
[1750409776726,5.52072463,106210.0,106200.0,0.004]
[1750409777143,5.61599448,106210.0,106200.0,0.004]
[1750409778124,5.52072463,106210.0,106200.0,0.004]
[1750409780738,5.52072463,106210.0,106200.0,0.02657357]
[1750409782363,5.36380463,106210.0,106200.0,0.02657357]
[1750409782586,5.52064463,106210.0,106200.0,0.02657357]
[1750409782811,5.3550614,106210.0,106200.0,0.24314525]
[1750409783252,5.3550614,106210.0,106200.0,0.24436525]
[1750409783491,5.3856614,106210.0,106200.0,0.23494959]
[1750409783713,5.3856614,106210.0,106200.0,0.23372959]
[1750409784385,5.1565814,106210.0,106200.0,0.24314525]
[1750409784612,5.3550214,106210.0,106200.0,0.27253203]
[1750409785033,0.63598963,106210.0,106200.0,0.2819476]
[1750409785246,0.84384467,106210.0,106200.0,0.2819476]
[1750409785681,1.04156598,106210.0,106200.0,0.27253203]
[1750409785908,1.07426598,106210.0,106200.0,0.27253203]
[1750409786132,5.19873635,106210.0,106200.0,0.05474035]
[1750409786353,5.19873635,106210.0,106200.0,0.02657357]
[1750409786354,5.4924462,106210.0,106200.0,0.02657357]
[1750409786803,5.39717635,106210.0,106200.0,0.02657357]
[1750409787049,1.08603635,106210.0,106200.0,0.23372959]
[1750409787307,0.87654449,106210.0,106200.0,0.24314534]
[1750409787971,0.88595953,106210.0,106200.0,0.24314534]
[1750409788193,1.07426625,106210.0,106200.0,0.24314543]
[1750409788415,0.88596007,106210.0,106200.0,0.24314552]
[1750409788850,1.10646625,106210.0,106200.0,0.24314552]
[1750409789039,1.10646625,106210.0,106200.0,0.23372968]
[1750409789270,1.10646625,106210.0,106200.0,0.24314552]
[1750409789502,1.10646625,106210.0,106200.0,0.23372968]
[1750409789717,1.10646625,106210.0,106200.0,0.25256144]
[1750409790138,1.10646625,106210.0,106200.0,0.2431456]
[1750409790347,1.10646625,106210.0,106200.0,0.25256144]
[1750409790557,1.10646625,106210.0,106200.0,0.2431456]
[1750409790787,1.10646625,106210.0,106200.0,0.25256144]
[1750409790788,1.11588155,106210.0,106200.0,0.25256144]
[1750409791207,1.11588155,106210.0,106200.0,0.26197719]
[1750409791416,0.91816007,106210.0,106200.0,0.26197719]
[1750409791628,0.91816007,106210.0,106200.0,0.26197666]
[1750409791838,1.10646625,106210.0,106200.0,0.22431349]
[1750409792053,1.10646625,106210.0,106200.0,0.24314525]
[1750409792373,1.11588155,106210.0,106200.0,0.24314525]
[1750409792591,1.09705174,106210.0,106200.0,0.22431367]
[1750409792813,1.09705174,106210.0,106200.0,0.21489748]
[1750409793028,1.09705174,106210.0,106200.0,0.23372977]
[1750409793681,1.09705174,106210.0,106200.0,0.22431367]
[1750409793897,0.87089174,106210.0,106200.0,0.22431367]
[1750409794319,0.8614767,106210.0,106200.0,0.21489748]
[1750409794753,0.8614767,106210.0,106200.0,0.22431367]
[1750409795233,0.8614767,106210.0,106200.0,0.23372977]
[1750409795451,0.8614767,106210.0,106200.0,0.25256162]
[1750409795678,0.69199997,106210.0,106200.0,0.26197737]
[1750409795911,0.88030615,106210.0,106200.0,0.26197737]
[1750409796124,0.88030615,106210.0,106200.0,0.25256162]
[1750409796449,0.87089147,106210.0,106200.0,0.2525617]
[1750409796666,0.86147652,106210.0,106200.0,0.24314578]
[1750409797106,0.85320148,106210.0,106200.0,0.21489748]
[1750409797336,0.85320148,106210.0,106200.0,0.22431367]
[1750409797552,0.84378618,106210.0,106200.0,0.22431367]
[1750409797765,0.84378618,106210.0,106200.0,0.23372977]
[1750409798679,0.84378618,106210.0,106200.0,0.21489748]
[1750409799641,0.84378618,106210.0,106200.0,0.24306426]
[1750409799842,0.84378618,106210.0,106200.0,0.02657357]
[1750409800052,0.84378618,106210.0,106200.0,0.05474035]
[1750409801743,0.84378618,106210.0,106200.0,0.24306426]
[1750409801984,0.84378618,106210.0,106200.0,0.25248045]
[1750409802214,0.8613567,106210.0,106200.0,0.25248027]
[1750409802683,0.87077165,106210.0,106200.0,0.23372941]
[1750409802903,0.87077165,106210.0,106200.0,0.26189619]
[1750409803545,0.87077165,106210.0,106200.0,0.25248027]
[1750409803968,0.87077165,106210.0,106200.0,0.26189619]
[1750409804183,0.87077165,106210.0,106200.0,0.25248027]
[1750409804405,0.87191165,106210.0,106200.0,0.26189602]
[1750409804622,0.87191165,106210.0,106200.0,0.26189619]
[1750409805097,0.86249635,106210.0,106200.0,0.28072769]
[1750409805317,0.87077165,106210.0,106200.0,0.28072778]
[1750409805753,0.67245165,106210.0,106200.0,0.28072778]
[1750409805986,0.87077165,106210.0,106200.0,0.28072778]
[1750409806639,0.87077165,106210.0,106200.0,0.27131203]
[1750409809011,0.8613567,106210.0,106200.0,0.25248027]
[1750409809676,0.8613567,106210.0,106200.0,0.26189628]
[1750409810159,0.8613567,106210.0,106200.0,0.27131212]
[1750409810577,0.67305017,106210.0,106200.0,0.27131212]
[1750409810789,0.86135635,106210.0,106200.0,0.27131212]
[1750409812432,0.87077165,106210.0,106200.0,0.28072787]
[1750409813307,0.67305017,106210.0,106200.0,0.29014353]
[1750409813526,0.67305017,106210.0,106200.0,0.28072787]
[1750409813747,0.68246547,106210.0,106200.0,0.28072787]
[1750409813982,0.87077165,106210.0,106200.0,0.27131212]
[1750409814199,0.87077165,106210.0,106200.0,0.26189628]
[1750409814416,0.87077165,106210.0,106200.0,0.2618962]
[1750409814633,0.87077165,106210.0,106200.0,0.27131212]
[1750409815081,0.87077165,106210.0,106200.0,0.28072787]
[1750409815317,0.87077165,106210.0,106200.0,0.27131212]
[1750409815535,0.87077165,106210.0,106200.0,0.26189628]
[1750409815746,0.87077165,106210.0,106200.0,0.26189637]
[1750409815953,0.87196165,106210.0,106200.0,0.27131229]
[1750409816367,0.87196165,106210.0,106200.0,0.28072813]
[1750409816586,0.87196165,106210.0,106200.0,0.27131229]
[1750409816798,0.87196165,106210.0,106200.0,0.28072813]
[1750409817234,0.87196165,106210.0,106200.0,0.29014388]
[1750409817451,0.67304963,106210.0,106200.0,0.29014388]
[1750409817683,0.68246485,106210.0,106200.0,0.29014344]
[1750409817957,0.87077103,106210.0,106200.0,0.26189619]
[1750409818171,0.88018633,106210.0,106200.0,0.27131194]
[1750409818387,0.68246485,106210.0,106200.0,0.27131194]
[1750409818595,0.68246485,106210.0,106200.0,0.2807276]
[1750409820043,0.87077103,106210.0,106200.0,0.27131203]
[1750409820272,0.68246485,106210.0,106200.0,0.28072778]
[1750409820513,0.87077103,106210.0,106200.0,0.28072778]
[1750409821154,0.88018633,106210.0,106200.0,0.28072778]
[1750409821371,0.69188015,106210.0,106200.0,0.29014344]
[1750409821614,0.68246476,106210.0,106200.0,0.23940265]
[1750409821834,0.61732449,106210.0,106200.0,0.29026532]
[1750409822264,0.67912449,106210.0,106200.0,0.29026532]
[1750409823603,0.64902449,106210.0,106200.0,0.29026532]
[1750409824364,0.85970635,106210.0,106200.0,0.05486267]
[1750409824580,0.85970635,106210.0,106200.0,0.25260268]
[1750409824796,0.85966635,106210.0,106200.0,0.25260268]
[1750409825013,0.86789129,106210.0,106200.0,0.27143453]
[1750409825238,0.8784958,106210.0,106200.0,0.26201869]
[1750409825503,0.86908129,106210.0,106200.0,0.26201869]
[1750409826120,0.86908129,106210.0,106200.0,0.25260268]
[1750409826336,0.85966652,106210.0,106200.0,0.25260268]
[1750409826992,0.85025148,106210.0,106200.0,0.24318658]
[1750409827211,0.85025148,106210.0,106200.0,0.25260277]
[1750409827442,5.14334496,106210.0,106200.0,0.05486267]
[1750409827668,5.14334496,106210.0,106180.0,0.06582869]
[1750409827669,0.60125855,106190.0,106180.0,0.06582869]
[1750409827916,5.06892855,106190.0,106180.0,0.02825704]
[1750409828357,0.28011186,106180.0,106170.0,0.33369006]
[1750409828576,0.14269018,106180.0,106170.0,0.3806656]
[1750409828809,0.14269018,106180.0,106170.0,0.3819156]
[1750409829032,0.07919018,106180.0,106170.0,0.3819156]
[1750409829261,0.07919018,106180.0,106170.0,0.41617246]
[1750409829262,0.04152,106180.0,106170.0,0.41617246]
[1750409829977,0.52472955,106190.0,106180.0,0.21661221]
[1750409830216,0.52472955,106190.0,106180.0,0.24584404]
[1750409830217,0.58853283,106190.0,106180.0,0.24584404]
[1750409830467,0.59794955,106190.0,106180.0,0.24584404]
[1750409830705,0.60736636,106190.0,106180.0,0.24484404]
[1750409830916,0.538,106190.0,106180.0,0.24484404]
[1750409831144,0.538,106190.0,106180.0,0.30724404]
[1750409831366,0.2,106190.0,106180.0,0.30724404]
[1750409831582,0.04352,106190.0,106180.0,0.30724404]
[1750409832475,0.04352,106190.0,106180.0,0.34481569]
[1750409832914,0.05293628,106190.0,106180.0,0.34481569]
[1750409833721,0.05293628,106190.0,106180.0,0.30715659]
[1750409834146,0.05293628,106190.0,106180.0,0.24475659]